[Event "European Women Blitz-ch 2024"]
[Site "Monaco"]
[Date "2025.01.10"]
[Round "9.3"]
[White "Zhukova, Natalia"]
[Black "Wagner, Dinara"]
[Result "0-1"]
[Annotator "TA"]
[ECO "A29"]
[WhiteElo "2306"]
[BlackElo "2437"]
[PlyCount "74"]
[EventDate "2025.01.06"]
[EventType "swiss"]
[EventCountry "MNC"]
[SourceTitle "playchess.com"]
[Source "ChessBase"]
[SourceQuality "1"]
[TimeControl "180+2"]

{[%evp 10,74,0,0,17,12,14,13,19,-7,20,-6,0,0,0,-10,-3,0,-3,-17,-18,-76,-70,-86,-105,-106,-95,-97,-99,-113,-80,-381,-386,-387,-195,-176,-194,-234,-227,-458,-445,-475,-460,-783,-777,-829,-803,-812,-810,-827,-822,-879,-855,-901,-901,-901,-889,-902,-890,-1030,-953,-1072,-897,-855,-753,-5127,-5077]} 1. c4 {[%emt 0:00:01]} Nf6 {[%emt 0:00:01]} 2. Nc3 {[%emt 0:00:01]} e5 {[%emt 0:00:00]} 3. Nf3 {[%emt 0:00:02]} Nc6 {[%emt 0:00:01]} 4. g3 {[%emt 0:00:01]} d5 {[%emt 0:00:02]} 5. cxd5 {[%emt 0:00:02]} Nxd5 {[%emt 0:00:01]} 6. Bg2 {[%emt 0:00:01][%cal Of3e5]} Bc5 {[%emt 0:00:01]} 7. O-O {[%emt 0:00:04][%cal Of3e5]} O-O {[%emt 0:00:01]} 8. Nxd5 {[%emt 0:00:09]} Qxd5 {[%emt 0:00:01]} 9. d3 {[%emt 0:00:03]} (9. Ng5 $5 Qd8 10. d3 $11 (10. Nxh7 Re8 $11)) 9... Rd8 {[%emt 0:00:25]} 10. Bd2 {[%emt 0:00:23]} h6 {[%emt 0:00:02]} 11. Rc1 {[%emt 0:00:03][%cal Of3g5]} Bb6 {[%emt 0:00:01]} 12. Qa4 {[%emt 0:00:11]} Qe6 {[%emt 0:00:10]} 13. b4 {[%emt 0:00:24]} Bd7 {[%emt 0:00:15]} 14. Qc2 {[%emt 0:00:09]} a5 {[%emt 0:00:11]} 15. b5 {[%emt 0:00:04]} (15. bxa5 $1 $11 {keeps the balance.} Bxa5 16. Bxa5 Rxa5 17. Qb1) 15... Nb4 $17 {[%emt 0:00:04]} 16. Qc4 {[%emt 0:00:44]} ({Don't go for} 16. Bxb4 $2 axb4 17. Qb2 e4 (17... Bxb5 $2 18. Qxb4 Bc6 19. Rc2 $17) 18. dxe4 Bxb5 $19 (18... Qxa2 19. Qxb4 Qxe2 20. Nd4 $17)) 16... Nxa2 {[%emt 0:00:02]} 17. Ra1 {[%emt 0:00:02] [#]} Nb4 $1 {[%emt 0:00:07][%cal Oe5e4][%mdl 512] and ...e4! would now be decisive} 18. Qxe6 {[%emt 0:00:12]} Bxe6 {[%emt 0:00:04]} 19. Nxe5 {[%emt 0:00:04]} Bd4 {[%emt 0:00:06]} 20. Bf4 $2 {[%emt 0:00:30][%mdl 8192]} Bxa1 $19 {[%emt 0:00:05]} 21. Rxa1 {[%emt 0:00:01]} Nd5 {[%emt 0:00:02]} (21... Nc2 $142 22. Rd1 Bd5) 22. Bd2 {[%emt 0:00:03]} a4 {[%emt 0:00:01]} 23. f4 {[%emt 0:00:08]} a3 {[%emt 0:00:21]} 24. e4 $2 {[%emt 0:00:03]} (24. f5 {is a better defense.} Bc8 (24... Bxf5 $2 25. e4 $19) 25. Nc4) 24... Nb6 {[%emt 0:00:03]} 25. f5 {[%emt 0:00:01]} Bb3 {[%emt 0:00:01]} 26. Bc3 {[%emt 0:00:04]} (26. Bf1 $142) 26... f6 {[%emt 0:00:03]} 27. Ng6 {[%emt 0:00:10]} Rxd3 {[%emt 0:00:02]} 28. Bb4 {[%emt 0:00:00]} Rd1+ {[%emt 0:00:07]} 29. Rxd1 {[%emt 0:00:03]} Bxd1 {[%emt 0:00:00]} 30. Bxa3 {[%emt 0:00:05]} Rxa3 {[%emt 0:00:01]} 31. e5 {[%emt 0:00:01]} fxe5 {[%emt 0:00:04]} 32. Nxe5 {[%emt 0:00:01]} Rb3 {[%emt 0:00:10]} 33. Bxb7 {[%emt 0:00:06]} Rxb5 {[%emt 0:00:01]} 34. Ng6 {[%emt 0:00:03]} Kf7 {[%emt 0:00:10]} 35. Be4 {[%emt 0:00:03]} Nd7 {[%emt 0:00:06]} 36. Bc6 {[%emt 0:00:05]} Rxf5 {[%emt 0:00:01]} 37. Bxd7 {[%emt 0:00:02]} Kxg6 {[%emt 0:00:01]} 0-1

[Event "European Women Blitz-ch 2024"]
[Site "Monaco"]
[Date "2025.01.10"]
[Round "9.4"]
[White "Khademalsharieh, Sarasadat"]
[Black "Rudzinska, Michalina"]
[Result "0-1"]
[Annotator "TA"]
[ECO "D35"]
[WhiteElo "2458"]
[BlackElo "2226"]
[PlyCount "42"]
[EventDate "2025.01.06"]
[EventType "swiss"]
[EventCountry "MNC"]
[SourceTitle "playchess.com"]
[Source "ChessBase"]
[SourceQuality "1"]
[TimeControl "180+2"]

{[%evp 9,42,8,29,27,25,41,35,6,23,-79,-75,-126,-123,-373,-59,-154,-67,-131,-123,-135,-125,-118,-112,-97,-103,-102,-91,-89,-92,-82,-107,-107,0,-1430,-1400]} 1. d4 {[%emt 0:00:03]} d5 {[%emt 0:00:01]} 2. c4 {[%emt 0:00:01]} e6 {[%emt 0:00:01]} 3. Nc3 {[%emt 0:00:02]} Nf6 {[%emt 0:00:01]} 4. cxd5 {[%emt 0:00:01]} exd5 {[%emt 0:00:01]} 5. Bg5 {[%emt 0:00:01]} Bb4 {[%emt 0:00:01]} 6. Qb3 {[%emt 0:00:03]} c5 {[%emt 0:00:17]} 7. dxc5 {[%emt 0:00:13]} Nc6 {[%emt 0:00:04][%cal Od5d4]} 8. e3 {[%emt 0:00:05]} Be6 {[%emt 0:00:12][%cal Od5d4]} 9. Qd1 {[%emt 0:00:34]} (9. Bb5 $11 Qa5 10. Bxf6 Qxb5 11. Bd4) 9... h6 {[%emt 0:00:14]} 10. Bxf6 {[%emt 0:00:03]} ({White should try} 10. Bf4) 10... Qxf6 $17 {[%emt 0:00:02]} 11. Rc1 $2 {[%emt 0:00:58] [#]} (11. Nf3 $17) 11... O-O $2 {[%emt 0:00:19]} (11... Bxc5 12. Nxd5 Bxd5 (12... Qxb2 $2 13. Rxc5 O-O-O 14. Ne7+ Kc7 15. Qc2 $18) 13. Rxc5 Bxa2 14. Qc1 $11) (11... d4 $1 $19 12. exd4 O-O-O (12... Bxa2 13. Nf3 $15) (12... Qxd4 13. Qxd4 Nxd4 14. Nge2 $15) (12... Nxd4 13. Qa4+ Bd7 14. Qxb4 $15)) 12. Nf3 {[%emt 0:00:05]} (12. a3 $15 Bxc3+ (12... Bxc5 13. Bb5 $17) 13. bxc3) 12... Bxc5 {[%emt 0:00:18]} (12... Rfd8 $17 {[%cal Od5d4]} 13. Nd4 Bxc5 14. Nxc6 bxc6) 13. Be2 {[%emt 0:00:09]} (13. Bd3 $15) 13... d4 {[%emt 0:00:02]} 14. exd4 {[%emt 0:00:20]} Nxd4 {[%emt 0:00:02]} ({Don't do} 14... Bxd4 15. Ne4 Qg6 (15... Qf4 16. Rxc6 Qxe4 17. Rxe6 $15) 16. Rxc6 $11 (16. Nxd4 $2 Rad8 $19)) 15. Nxd4 {[%emt 0:00:01]} Bxd4 {[%emt 0:00:13]} 16. O-O {[%emt 0:00:02]} Rfd8 {[%emt 0:00:19] Black is much more active.} 17. Qa4 {[%emt 0:00:02]} a6 {[%emt 0:00:18]} 18. Bf3 {[%emt 0:00:01]} b5 $36 {[%emt 0:00:13][%mdl 2048] Black is really pushing.} 19. Qa5 {[%emt 0:00:02]} Rab8 {[%emt 0:00:45]} 20. Qxa6 {[%emt 0:00:01]} Bc4 {[%emt 0:00:02] This pair of bishops is nice.} (20... Bb6 $17 {...Bc4 would now be deadly.} 21. Kh1 h5) 21. Rfe1 $2 {[%emt 0:00:22][%mdl 8192]} Qxa6 {[%emt 0:00:02]} 0-1

[Event "European Women Blitz-ch 2024"]
[Site "Monaco"]
[Date "2025.01.10"]
[Round "9.5"]
[White "Khotenashvili, Bella"]
[Black "Paehtz, Elisabeth"]
[Result "1/2-1/2"]
[Annotator "TA"]
[ECO "A26"]
[WhiteElo "2420"]
[BlackElo "2428"]
[PlyCount "144"]
[EventDate "2025.01.06"]
[EventType "swiss"]
[EventCountry "MNC"]
[SourceTitle "playchess.com"]
[Source "ChessBase"]
[SourceQuality "1"]
[TimeControl "180+2"]

{[%evp 54,144,-11,-186,-22,-61,8,-27,0,0,66,0,0,0,2,-7,0,-8,-8,-8,-8,-8,0,-8,0,0,0,0,0,0,0,0,0,0,0,-17,0,0,0,0,0,0,0,0,0,-17,0,0,0,-206,-169,-145,0,0,0,0,0,-243,0,-154,0,0,0,0,0,0,0,0,0,0,0,0,0,0,0,0,0,0,0,0,0,0,0,0,0,-34,0,-47,0,0,0,-231,0]} 1. Nf3 {[%emt 0:00:03]} Nf6 {[%emt 0:00:00]} 2. g3 {[%emt 0:00:01]} g6 {[%emt 0:00:01]} 3. Bg2 {[%emt 0:00:01]} Bg7 {[%emt 0:00:01]} 4. O-O {[%emt 0:00:02]} O-O {[%emt 0:00:01]} 5. c4 {[%emt 0:00:01]} d6 {[%emt 0:00:01]} 6. Nc3 {[%emt 0:00:02]} e5 {[%emt 0:00:04]} 7. d3 {[%emt 0:00:03]} Nc6 {[%emt 0:00:02]} 8. Rb1 {[%emt 0:00:01]} a5 {[%emt 0:00:01]} 9. b3 {[%emt 0:00:04]} Bf5 {[%emt 0:00:01]} 10. e4 {[%emt 0:00:09]} Bg4 {[%emt 0:00:02]} 11. h3 {[%emt 0:00:01]} Bxf3 {[%emt 0:00:01]} 12. Bxf3 {[%emt 0:00:01]} Nd7 {[%emt 0:00:03]} 13. h4 {[%emt 0:00:11]} h5 {[%emt 0:00:12]} 14. Bg5 {[%emt 0:00:14]} Bf6 {[%emt 0:00:09]} 15. Be3 {[%emt 0:00:10]} Nd4 {[%emt 0:00:06]} 16. Bg2 {[%emt 0:00:06]} c6 {[%emt 0:00:07]} 17. Bh3 {[%emt 0:00:12]} Nc5 {[%emt 0:00:02]} 18. Kg2 {[%emt 0:00:39]} Qe7 {[%emt 0:00:12]} 19. Ne2 {[%emt 0:00:24]} Nde6 {[%emt 0:00:20]} 20. a3 {[%emt 0:00:21]} a4 {[%emt 0:00:02]} 21. b4 {[%emt 0:00:01]} Nb3 {[%emt 0:00:01]} 22. f4 {[%emt 0:00:13]} exf4 {[%emt 0:00:05]} 23. Nxf4 {[%emt 0:00:06]} Nxf4+ {[%emt 0:00:06]} 24. Rxf4 {[%emt 0:00:04]} Bg7 {[%emt 0:00:06]} 25. Rf3 {[%emt 0:00:13]} Rae8 {[%emt 0:00:13]} 26. Bg5 {[%emt 0:00:07]} Qc7 {[%emt 0:00:06]} 27. Be3 {[%emt 0:00:12]} c5 {[%emt 0:00:23]} 28. Qg1 $2 {[%emt 0:00:09]} (28. b5 $11) 28... b6 $2 {[%emt 0:00:02]} (28... cxb4 $19 29. axb4 b5) 29. b5 {[%emt 0:00:03]} Bd4 {[%emt 0:00:04]} (29... f5 $1 $15) 30. Qf2 {[%emt 0:00:03]} Bxe3 {[%emt 0:00:02]} (30... f5 $5) 31. Qxe3 {[%emt 0:00:01]} Nd4 {[%emt 0:00:07]} ({Better is} 31... f5 $11) 32. Rf2 {[%emt 0:00:01]} (32. Rf6 $14) 32... Kg7 $11 {[%emt 0:00:05]} 33. Rbf1 {[%emt 0:00:01]} Qe7 {[%emt 0:00:01]} 34. Qf4 {[%emt 0:00:02]} Qe5 {[%emt 0:00:03]} 35. Kh2 {[%emt 0:00:03]} Qxf4 {[%emt 0:00:03]} 36. gxf4 {[%emt 0:00:02]} f5 {[%emt 0:00:06]} 37. Bg2 {[%emt 0:00:01]} Nb3 {[%emt 0:00:14]} 38. Kg3 {[%emt 0:00:02]} Na5 {[%emt 0:00:02]} 39. Re1 {[%emt 0:00:02]} fxe4 {[%emt 0:00:02]} 40. Rxe4 {[%emt 0:00:04]} Rxe4 {[%emt 0:00:06]} 41. Bxe4 {[%emt 0:00:01]} Nb3 {[%emt 0:00:06]} 42. Kf3 {[%emt 0:00:03]} Nd4+ {[%emt 0:00:01]} 43. Kg3 {[%emt 0:00:01]} Rf6 {[%emt 0:00:02]} 44. Rg2 {[%emt 0:00:03]} Kf8 {[%emt 0:00:03]} 45. Rf2 {[%emt 0:00:01]} Ke7 {[%emt 0:00:02]} 46. Rg2 {[%emt 0:00:01]} Ne6 {[%emt 0:00:03]} 47. Rf2 {[%emt 0:00:01]} Nd4 {[%emt 0:00:09]} 48. Rg2 {[%emt 0:00:00]} Re6 {[%emt 0:00:01]} 49. Rf2 {[%emt 0:00:02]} Kf6 {[%emt 0:00:02]} (49... d5 $5 50. cxd5 Rf6 $11) 50. Rg2 {[%emt 0:00:03]} Re7 {[%emt 0:00:04]} 51. Rf2 $2 {[%emt 0:00:02]} (51. Kf2 $11 Rg7 (51... Nf5 52. Rh2 $11) 52. Ke3) 51... Nf5+ {[%emt 0:00:05]} 52. Kh3 {[%emt 0:00:01]} Nh6 {[%emt 0:00:04]} (52... d5 $1 $17 {[%cal Rd5e4]} 53. cxd5 Nd6) 53. Kg3 $11 {[%emt 0:00:04]} Ng4 {[%emt 0:00:01]} 54. Rd2 {[%emt 0:00:01]} Ne3 {[%emt 0:00:07]} 55. Rf2 $2 {[%emt 0:00:07]} (55. Kf3 $11 {and White is okay.} Nf5 56. Rh2) 55... Nf5+ {[%emt 0:00:02]} 56. Kh3 {[%emt 0:00:01] [#]} Re6 $2 {[%emt 0:00:06]} (56... d5 $1 $17 {[%cal Rd5e4]} 57. cxd5 Nd6) 57. Rg2 $11 {[%emt 0:00:03]} Ne7 {[%emt 0:00:09]} 58. Kg3 {[%emt 0:00:02]} Kf7 {[%emt 0:00:04]} 59. Kh3 {[%emt 0:00:00]} Rf6 {[%emt 0:00:01]} 60. Kg3 {[%emt 0:00:01]} Ke6 {[%emt 0:00:01]} 61. Re2 {[%emt 0:00:02]} Kf7 {[%emt 0:00:04]} 62. Rf2 {[%emt 0:00:03]} Nf5+ {[%emt 0:00:04]} 63. Kh3 {[%emt 0:00:01]} Nd4 {[%emt 0:00:02]} 64. Kg3 {[%emt 0:00:01]} Ke7 {[%emt 0:00:02]} 65. Kh3 {[%emt 0:00:11]} Nf5 {[%emt 0:00:02]} 66. Re2 {[%emt 0:00:00]} Nd4 {[%emt 0:00:03]} 67. Rf2 {[%emt 0:00:00]} Kf7 {[%emt 0:00:01]} 68. Kg3 {[%emt 0:00:00]} Kg7 {[%emt 0:00:01]} 69. Rg2 {[%emt 0:00:00]} Re6 {[%emt 0:00:01]} 70. Rf2 {[%emt 0:00:00]} (70. Kh3 $11) 70... Kf6 {[%emt 0:00:01]} (70... d5 $15 71. cxd5 Rf6) 71. Rg2 $11 {[%emt 0:00:01]} Re7 {[%emt 0:00:01]} 72. Rf2 $2 {[%emt 0:00:01] [#]} (72. Kf2 $11 Nf5 73. Bxf5 Kxf5 74. Kf3) 72... Nf5+ $2 {[%emt 0:00:10]} (72... d5 $1 $19 {[%cal Rd5e4]} 73. cxd5 c4 (73... Nxb5 $2 {loses.} 74. Rb2 $18)) 1/2-1/2

[Event "European Women Blitz-ch 2024"]
[Site "Monaco"]
[Date "2025.01.10"]
[Round "9.6"]
[White "Ushenina, Anna"]
[Black "Papp, Petra"]
[Result "1-0"]
[Annotator "TA"]
[ECO "A31"]
[WhiteElo "2418"]
[BlackElo "2235"]
[PlyCount "141"]
[EventDate "2025.01.06"]
[EventType "swiss"]
[EventCountry "MNC"]
[SourceTitle "playchess.com"]
[Source "ChessBase"]
[SourceQuality "1"]
[TimeControl "180+2"]

{[%evp 46,141,224,217,236,234,231,236,261,218,266,268,314,309,350,0,279,252,314,245,287,294,306,318,347,292,645,0,300,33,47,0,293,290,478,463,480,0,423,415,415,381,345,217,375,222,622,610,4706,589,1184,1137,2022,362,1929,1766,1713,915,959,848,2460,923,29989,0,1726,276,280,269,269,269,671,225,735,735,728,668,663,630,29986,29987,29990,29991,29993,29994,29994,29995,29995,29996,29997,29991,29996,29997,29997,29998,29999,29997,29997,1481]} 1. Nf3 {[%emt 0:00:03]} c5 {[%emt 0:00:04]} 2. c4 {[%emt 0:00:10]} Nc6 {[%emt 0:00:01]} 3. d4 {[%emt 0:00:04]} cxd4 {[%emt 0:00:02]} 4. Nxd4 {[%emt 0:00:01]} e5 {[%emt 0:00:00]} 5. Nc2 {[%emt 0:00:07]} Bc5 {[%emt 0:00:07]} 6. Nc3 {[%emt 0:00:05]} Nf6 {[%emt 0:00:07]} 7. e3 {[%emt 0:00:03]} O-O {[%emt 0:00:04]} 8. Be2 {[%emt 0:00:01]} e4 {[%emt 0:00:11]} 9. O-O {[%emt 0:00:05]} Re8 {[%emt 0:00:01]} 10. b3 {[%emt 0:00:18]} a5 {[%emt 0:00:08]} 11. Bb2 {[%emt 0:00:05]} Ne5 {[%emt 0:00:01]} 12. Nd5 {[%emt 0:00:09]} d6 {[%emt 0:00:09]} 13. h3 {[%emt 0:00:08]} Bf5 {[%emt 0:00:12]} 14. Nd4 {[%emt 0:00:13]} Bg6 {[%emt 0:00:01]} 15. Nf4 {[%emt 0:00:03]} a4 {[%emt 0:00:27]} 16. Qd2 {[%emt 0:00:12]} Qb6 {[%emt 0:00:22]} 17. Nb5 {[%emt 0:00:11]} Qc6 {[%emt 0:00:53]} 18. Rfd1 {[%emt 0:00:11]} Rad8 {[%emt 0:00:03]} 19. Rac1 {[%emt 0:00:10]} axb3 {[%emt 0:00:02]} 20. axb3 {[%emt 0:00:01]} Nd3 {[%emt 0:00:07]} 21. Bxd3 {[%emt 0:00:47]} exd3 {[%emt 0:00:02]} 22. Bxf6 {[%emt 0:00:16]} gxf6 {[%emt 0:00:03]} 23. Nxg6 {[%emt 0:00:01]} hxg6 {[%emt 0:00:02]} 24. Qxd3 {[%emt 0:00:01]} Kg7 {[%emt 0:00:01]} 25. Nc3 {[%emt 0:00:01]} Re5 {[%emt 0:00:05]} 26. Nd5 {[%emt 0:00:02]} Rde8 {[%emt 0:00:02]} 27. Kh1 {[%emt 0:00:12]} Rf5 {[%emt 0:00:08]} 28. Rc2 {[%emt 0:00:03]} Rh5 {[%emt 0:00:03]} 29. Qc3 {[%emt 0:00:06]} (29. b4 Bb6 30. b5 Qc5) 29... Rf5 {[%emt 0:00:11]} 30. Qd3 {[%emt 0:00:04]} Rh5 $1 {[%emt 0:00:01]} 31. b4 {[%emt 0:00:04]} Ba7 {[%emt 0:00:01]} 32. Nf4 {[%emt 0:00:02]} Rg5 {[%emt 0:00:04]} 33. Qxd6 {[%emt 0:00:01]} Qe4 {[%emt 0:00:02]} 34. Qd3 {[%emt 0:00:03]} Qe5 {[%emt 0:00:08]} 35. Qd7 {[%emt 0:00:04]} Rh8 $2 {[%emt 0:00:03]} (35... Qe4) 36. Qd3 $2 {[%emt 0:00:03]} (36. Qxb7 $18 Bxe3 37. fxe3) 36... Bb8 $2 {[%emt 0:00:03][%mdl 8192]} (36... Re8 $1 $11 37. Rcd2 Bb8) 37. Qd4 $2 {[%emt 0:00:03]} (37. Rcd2 $18) 37... Qf5 $14 {[%emt 0:00:03]} 38. Qd3 $2 {[%emt 0:00:01]} (38. Rdd2 $14) 38... Qe5 $1 $18 {[%emt 0:00:03]} 39. c5 {[%emt 0:00:02]} Rh4 $2 {[%emt 0:00:01]} (39... Qe8 40. Rc4 Re5) 40. Qd4 {[%emt 0:00:02]} Qf5 {[%emt 0:00:06] [#]} 41. Qd3 $2 {[%emt 0:00:01]} (41. Ne6+ $1 $18 Qxe6 (41... fxe6 $2 42. Qxh4 Rh5 43. e4 $18) 42. Qxh4) 41... Rxf4 $4 {[%emt 0:00:03][%mdl 8192]} (41... Qe5 $1 $11 {and Black stays safe.} 42. Rc4 Rgg4) 42. exf4 $18 {[%emt 0:00:01]} Qxf4 {[%emt 0:00:00]} 43. g3 {[%emt 0:00:01]} Qxb4 {[%emt 0:00:03]} 44. Kg2 {[%emt 0:00:02]} Rf5 $2 {[%emt 0:00:02]} (44... Rxc5 {keeps fighting.} 45. Rxc5 Qxc5) 45. Rdd2 {[%emt 0:00:01]} (45. Qc4 $142 Qxc4 46. Rxc4) 45... Be5 $2 {[%emt 0:00:05]} (45... Rxc5 46. Rb2 Qa4 47. Rxb7 Bc7) 46. Qc4 $18 {[%emt 0:00:01]} Qb1 {[%emt 0:00:01]} 47. Qe4 {[%emt 0:00:01]} (47. Rd7 $142 Kh6 48. Rxf7 (48. Re2 Bxg3 49. Qc2 Qb5 $16)) 47... Qa1 {[%emt 0:00:02]} 48. Qxb7 {[%emt 0:00:01]} Bd4 {[%emt 0:00:02]} 49. Qe4 $2 {[%emt 0:00:02]} (49. c6 {White threatens c7 and mate.} Be3 50. fxe3 Qf1+ 51. Kh2) 49... Be5 $2 {[%emt 0:00:04]} (49... Bxc5 50. Rd8 Bb6) 50. c6 $18 {[%emt 0:00:01]} Qa8 {[%emt 0:00:03]} 51. Re2 {[%emt 0:00:02]} Qc8 {[%emt 0:00:00]} 52. c7 {[%emt 0:00:01]} Rg5 {[%emt 0:00:01]} 53. Qc6 {[%emt 0:00:01]} (53. f4 $142 Rxg3+ 54. Kxg3 Bxc7 55. Qc4 Bxf4+ 56. Qxf4) 53... Qf5 {[%emt 0:00:04]} 54. Qe4 {[%emt 0:00:01]} (54. Rxe5 $142 Qxe5 55. c8=Q (55. c8=R Qd5+ 56. Qxd5 Rxd5 $18) 55... Rf5 56. Q6a8 (56. Qd8 Qa5 $18) 56... Qd5+ 57. Qxd5 Rxd5 58. Qa8 Rh5 59. Rc8) 54... Qc8 $1 $18 {[%emt 0:00:06]} 55. Qd3 $2 (55. f4 Rxg3+ 56. Kxg3 Bxc7 57. Qc4 Bxf4+ 58. Qxf4) 55... Bxc7 $18 {[%emt 0:00:00]} 56. Qf3 {[%emt 0:00:06]} Qb8 {[%emt 0:00:00]} 57. Re7 {[%emt 0:00:02]} Rf5 $2 {[%emt 0:00:00]} (57... Bd6) 58. Qe4 $2 {[%emt 0:00:15]} (58. Qc6) 58... Be5 $2 (58... Re5 59. Rxe5 Bxe5) 59. Qd5 $18 {[%emt 0:00:00]} Qf8 {[%emt 0:00:06]} 60. Qb7 {[%emt 0:00:00]} Bd6 {[%emt 0:00:02]} 61. Rd7 {[%emt 0:00:00]} Be5 {[%emt 0:00:02]} 62. Rc8 {[%emt 0:00:00]} Rxf2+ {[%emt 0:00:03]} 63. Kxf2 {[%emt 0:00:00]} Qa3 {[%emt 0:00:01]} 64. Rxf7+ {[%emt 0:00:00]} Kh6 {[%emt 0:00:01]} 65. Rh7+ {[%emt 0:00:00]} Kg5 {[%emt 0:00:00]} 66. h4+ {[%emt 0:00:02]} Kg4 {[%emt 0:00:01]} 67. Qe4+ {[%emt 0:00:01]} Kh3 {[%emt 0:00:02]} 68. Qh1+ {[%emt 0:00:01]} ({And not} 68. Qxg6 Bd4+ 69. Ke2 Qe3+ 70. Kd1 Qf3+ 71. Kd2 Qe3+ 72. Kc2 Qe2+ 73. Kb3 Qb5+ 74. Kc2 Qe2+ 75. Kb3 Qb5+ 76. Kc2 Qe2+ $11) 68... Kg4 {[%emt 0:00:00]} 69. Rc4+ {[%emt 0:00:01]} Kf5 {[%emt 0:00:03]} 70. Qe4+ {[%emt 0:00:01]} Ke6 {[%emt 0:00:00]} 71. Rc6+ {[%emt 0:00:20]} 1-0

[Event "European Women Blitz-ch 2024"]
[Site "Monaco"]
[Date "2025.01.10"]
[Round "9.7"]
[White "Sliwicka, Alicja"]
[Black "Roebers, Eline"]
[Result "0-1"]
[Annotator "TA"]
[ECO "B45"]
[WhiteElo "2344"]
[BlackElo "2381"]
[PlyCount "67"]
[EventDate "2025.01.06"]
[EventType "swiss"]
[EventCountry "MNC"]
[SourceTitle "playchess.com"]
[Source "ChessBase"]
[SourceQuality "1"]
[TimeControl "180+2"]

{[%evp 10,67,15,0,20,20,26,-29,-24,-21,-37,-39,-33,-29,-37,-48,-41,-39,-44,-47,-20,-68,-32,-138,-110,-87,-80,-197,-174,-328,-341,-344,-368,-360,-364,-368,-370,-476,-462,-473,-465,-473,-460,-644,-635,-674,-655,-862,-841,-893,-889,-2894,-2640,-29986,-29987,-29993,-29993,-29993,-29994,-29997]} 1. e4 {[%emt 0:00:01]} c5 {[%emt 0:00:00]} 2. Nf3 {[%emt 0:00:02]} Nc6 {[%emt 0:00:01]} 3. d4 {[%emt 0:00:01]} cxd4 {[%emt 0:00:01]} 4. Nxd4 {[%emt 0:00:01]} Nf6 {[%emt 0:00:00]} 5. Nc3 {[%emt 0:00:02]} e6 {[%emt 0:00:01]} 6. Bf4 {[%emt 0:00:04]} Bc5 {[%emt 0:00:03]} 7. Nb3 {[%emt 0:00:37]} Bb4 {[%emt 0:00:03]} 8. Bd3 {[%emt 0:00:02]} (8. Qd3 $142) 8... d5 $11 {[%emt 0:00:16]} 9. exd5 {[%emt 0:00:03]} Nxd5 {[%emt 0:00:02]} 10. Bd2 {[%emt 0:00:02]} Nxc3 {[%emt 0:00:04]} 11. bxc3 {[%emt 0:00:02]} Bd6 {[%emt 0:00:01]} 12. O-O {[%emt 0:00:06]} O-O {[%emt 0:00:01]} 13. Qh5 {[%emt 0:00:04][%csl Gd3][%cal Rh5h7]} g6 {[%emt 0:00:01]} 14. Qh6 {[%emt 0:00:07]} Ne5 {[%emt 0:00:11]} 15. h3 {[%emt 0:00:13] Wards off Ng4} (15. Be2 $1 $11 {was preferable.}) 15... f5 {[%emt 0:00:17][%cal Of5f4]} 16. Nd4 {[%emt 0:00:05]} (16. Qe3 $15) 16... Nf7 {[%emt 0:00:03]} 17. Qe3 {[%emt 0:00:04]} e5 $36 {[%emt 0:00:04][%mdl 2048] Keeping White busy.} 18. Nb5 {[%emt 0:00:05]} (18. Nb3 $17) 18... Bb8 $19 {[%emt 0:00:01] aiming for ...a6.} 19. Rad1 $2 {[%emt 0:01:07]} (19. a4 {might work better.}) 19... a6 {[%emt 0:00:08]} 20. Na3 {[%emt 0:00:02]} e4 {[%emt 0:00:03]} 21. Bc4 {[%emt 0:00:03]} Qd6 {[%emt 0:00:12]} 22. g3 {[%emt 0:00:04]} Qxa3 {[%emt 0:00:03]} 23. Bc1 {[%emt 0:00:06]} Qe7 {[%emt 0:00:01]} 24. Bd5 {[%emt 0:00:11]} Be6 {[%emt 0:00:38]} 25. c4 {[%emt 0:00:02]} Bxd5 {[%emt 0:00:02]} 26. cxd5 {[%emt 0:00:03]} Bd6 {[%emt 0:00:04]} 27. Bb2 {[%emt 0:00:06]} Ne5 {[%emt 0:00:01]} 28. Kg2 {[%emt 0:00:03]} Rac8 {[%emt 0:00:03]} 29. Qb3 {[%emt 0:00:09]} f4 {[%emt 0:00:03]} 30. Rfe1 {[%emt 0:00:06]} fxg3 {[%emt 0:00:10]} 31. fxg3 {[%emt 0:00:05]} Rf3 {[%emt 0:00:09]} 32. Qb6 {[%emt 0:00:06]} Rxc2+ {[%emt 0:00:03]} 33. Kh1 {[%emt 0:00:03]} Qd7 {[%emt 0:00:04]} 34. g4 {[%emt 0:00:13]} 0-1